bitfinex-derivatives/quotes_BTCF0:USTF0_20250127
["timestamp","ask_amount","ask_price","bid_price","bid_amount"]
[1737948790308,1.11843833,101620.0,101610.0,0.001]
[1737948791013,0.75763833,101620.0,101610.0,0.001]
[1737948792019,1.11843833,101620.0,101610.0,0.001]
[1737948792210,1.12829057,101620.0,101610.0,0.001]
[1737948792416,0.76749057,101620.0,101610.0,0.001]
[1737948792613,0.59769936,101620.0,101610.0,0.3618]
[1737948792924,0.58784712,101620.0,101610.0,0.3618]
[1737948793523,0.58784712,101620.0,101610.0,1.8618]
[1737948793719,0.68063833,101620.0,101610.0,1.8618]
[1737948794510,0.49620712,101620.0,101610.0,1.8618]
[1737948794717,0.42330712,101620.0,101610.0,2.058736]
[1737948795118,0.42330712,101620.0,101610.0,1.8618]
[1737948796217,0.42330712,101620.0,101610.0,1.95459121]
[1737948796418,0.42330712,101620.0,101610.0,1.8618]
[1737948796833,0.54121019,101620.0,101610.0,2.058736]
[1737948797021,0.46291019,101620.0,101610.0,2.15152721]
[1737948799125,0.46291019,101620.0,101610.0,1.8618]
[1737948799528,0.46291019,101620.0,101610.0,1.87186885]
[1737948799825,0.46291019,101620.0,101610.0,1.51106885]
[1737948800233,0.46291019,101620.0,101610.0,1.87186885]
[1737948800432,0.19806449,101620.0,101610.0,1.87186885]
[1737948801118,0.27906449,101620.0,101610.0,2.16159606]
[1737948802129,0.27906449,101620.0,101610.0,2.06880485]
[1737948802637,0.19806449,101620.0,101610.0,2.16159606]
[1737948803027,0.19806449,101620.0,101610.0,2.24059606]
[1737948803626,0.00114749,101620.0,101610.0,2.24059606]
[1737948804123,0.19806449,101620.0,101610.0,2.24059606]
[1737948805133,0.00114749,101620.0,101610.0,2.24059606]
[1737948807123,0.00114749,101620.0,101610.0,2.41493783]
[1737948808535,0.196906,101630.0,101610.0,0.81079304]
[1737948808739,0.196906,101630.0,101620.0,0.65050821]
[1737948809035,0.196906,101630.0,101620.0,2.15050821]
[1737948809228,0.196906,101630.0,101620.0,2.057717]
[1737948810236,0.34484863,101630.0,101620.0,2.059717]
[1737948810436,0.34584863,101630.0,101620.0,2.059717]
[1737948811638,0.43863984,101630.0,101620.0,0.559717]
[1737948811940,0.34584863,101630.0,101620.0,0.559717]
[1737948814239,0.198906,101630.0,101620.0,0.559717]
[1737948815637,0.198906,101630.0,101620.0,0.65250821]
[1737948815935,0.198906,101630.0,101620.0,0.716117]
[1737948817039,0.198906,101630.0,101620.0,0.640117]
[1737948817640,0.34584863,101630.0,101620.0,2.140117]
[1737948820037,0.34584863,101630.0,101620.0,2.059717]
[1737948820345,0.34584863,101630.0,101620.0,1.8628]
[1737948820346,0.51613984,101630.0,101620.0,1.8628]
[1737948821836,1.04023984,101630.0,101620.0,0.002]
[1737948822045,0.360217,101620.0,101610.0,0.17448926]
[1737948822251,0.87850821,101620.0,101610.0,0.07318926]
[1737948824048,0.88843674,101620.0,101610.0,0.07318926]
[1737948824347,0.52863674,101620.0,101610.0,0.07318926]
[1737948824750,0.88943674,101620.0,101610.0,0.07318926]
[1737948825448,0.96763674,101620.0,101610.0,0.07318926]
[1737948826147,0.196936,101610.0,101600.0,1.6]
[1737948826339,0.35392721,101610.0,101600.0,1.6]
[1737948827241,0.262136,101610.0,101600.0,1.6]
[1737948827438,0.262136,101610.0,101600.0,1.601]
[1737948830246,0.46318279,101610.0,101600.0,2.158756]
[1737948831244,0.46318279,101610.0,101600.0,2.25154721]
[1737948831444,0.46318279,101610.0,101600.0,2.31534721]
[1737948831648,0.26624679,101610.0,101600.0,2.44794721]
[1737948831843,0.26624679,101610.0,101600.0,0.94794721]
[1737948832352,0.26624679,101610.0,101600.0,2.44794721]
[1737948832562,0.11888746,101610.0,101600.0,2.44794721]
[1737948834751,0.31582346,101610.0,101600.0,2.44794721]
[1737948835446,0.31582346,101610.0,101600.0,0.855156]
[1737948835648,0.197936,101610.0,101600.0,0.855156]
[1737948835953,0.29072721,101610.0,101600.0,2.222556]
[1737948836150,0.29072721,101610.0,101600.0,0.101]
[1737948836553,0.29072721,101610.0,101600.0,1.601]
[1737948837354,0.29072721,101610.0,101600.0,0.101]
[1737948838258,0.38351842,101610.0,101600.0,0.101]
[1737948838460,0.38351842,101610.0,101600.0,0.10127403]
[1737948838860,0.50140588,101610.0,101600.0,0.10127403]
[1737948839163,0.64876521,101610.0,101600.0,0.10127403]
[1737948839560,0.555974,101610.0,101600.0,0.10127403]
[1737948840361,0.916774,101610.0,101600.0,0.10127403]
[1737948842375,1.00956521,101610.0,101600.0,0.10127403]
[1737948842855,0.92670725,101610.0,101600.0,0.10127403]
[1737948843263,1.01949846,101610.0,101600.0,0.10127403]
[1737948843464,0.56590725,101610.0,101600.0,0.10127403]
[1737948843663,0.98539774,101610.0,101600.0,0.10127403]
[1737948844964,0.98513711,101610.0,101600.0,0.10127403]
[1737948845170,1.07792832,101610.0,101600.0,0.10127403]
[1737948846371,0.98513711,101610.0,101600.0,0.10127403]
[1737948847882,0.80855916,101610.0,101600.0,0.10127403]
[1737948848278,0.44775916,101610.0,101600.0,0.10127403]
[1737948848579,0.80855916,101610.0,101600.0,0.10127403]
[1737948849171,0.35496795,101610.0,101600.0,0.10127403]
[1737948849377,0.44775916,101610.0,101600.0,0.10127403]
[1737948850282,0.35496795,101610.0,101600.0,0.10127403]
[1737948850476,0.35496795,101610.0,101600.0,0.16567403]
[1737948850874,0.44775916,101610.0,101600.0,0.16567403]
[1737948851679,0.3450347,101610.0,101600.0,0.81622124]
[1737948851881,0.3450347,101610.0,101600.0,0.88352124]
[1737948852183,0.3450347,101610.0,101600.0,0.79073003]
[1737948853481,0.46296089,101610.0,101600.0,0.79073003]
[1737948853684,0.46296089,101610.0,101600.0,0.88352124]
[1737948855079,0.46296089,101610.0,101600.0,0.79073003]
[1737948857086,0.31560156,101610.0,101600.0,0.79073003]
[1737948859086,0.31560156,101610.0,101600.0,0.72343003]
[1737948859390,0.31560156,101610.0,101600.0,0.73332123]
[1737948859690,0.31560156,101610.0,101600.0,0.82611244]
[1737948860289,0.11866556,101610.0,101600.0,0.82611244]
[1737948861491,0.31560156,101610.0,101600.0,0.73332123]
[1737948866789,0.31560156,101610.0,101600.0,0.82611244]
[1737948868099,0.11866556,101610.0,101600.0,0.82611244]
[1737948868506,0.11866556,101610.0,101600.0,2.32611244]
[1737948871994,0.40839277,101610.0,101600.0,2.23332123]
[1737948872185,0.40839277,101610.0,101600.0,0.73332123]
[1737948872598,0.31560156,101610.0,101600.0,0.73332123]
[1737948873502,0.40839277,101610.0,101600.0,0.53636523]
[1737948873802,0.29046658,101610.0,101600.0,0.46207403]
[1737948874799,0.38170658,101610.0,101600.0,0.46207403]
[1737948878201,0.70564386,101610.0,101600.0,0.46207403]
[1737948878809,0.71572048,101610.0,101600.0,0.46207403]
[1737948880509,0.61285265,101610.0,101600.0,0.46207403]
[1737948880698,0.61285265,101610.0,101600.0,0.65903003]
[1737948881299,0.52161265,101610.0,101600.0,0.65903003]
[1737948881910,0.52161265,101610.0,101600.0,0.75182124]
[1737948882093,0.52161265,101610.0,101600.0,0.65903003]
[1737948882413,0.52161265,101610.0,101600.0,0.46207403]
[1737948882414,0.43782591,101610.0,101600.0,0.46207403]
[1737948883704,0.53061712,101610.0,101600.0,0.46207403]
[1737948883899,0.43782591,101610.0,101600.0,0.46207403]
[1737948884201,0.43782591,101610.0,101600.0,0.10127403]
[1737948884401,0.79862591,101610.0,101600.0,0.10127403]
[1737948884602,0.96192591,101610.0,101600.0,0.10127403]
[1737948885009,1.13850386,101610.0,101600.0,0.10127403]
[1737948886106,0.77770386,101610.0,101600.0,0.10127403]
[1737948887105,1.13850386,101610.0,101600.0,0.10127403]
[1737948889411,0.96192591,101610.0,101600.0,0.10127403]
[1737948891203,0.60168991,101610.0,101600.0,0.29823003]
[1737948891408,0.1480987,101610.0,101600.0,0.80542124]
[1737948891802,0.1480987,101610.0,101600.0,2.30542124]
[1737948892503,0.1480987,101610.0,101600.0,2.21263003]
[1737948892906,0.3450347,101610.0,101600.0,2.21263003]
[1737948894005,0.52161265,101610.0,101600.0,2.21263003]
[1737948895608,0.52161265,101610.0,101600.0,2.22243363]
[1737948895807,0.61440386,101610.0,101600.0,0.46207403]
[1737948896203,0.67040386,101610.0,101600.0,0.65903003]
[1737948898707,0.49382591,101610.0,101600.0,0.65903003]
[1737948898908,0.4010347,101610.0,101600.0,0.65903003]
[1737948899705,0.3450347,101610.0,101600.0,0.75182124]
[1737948899916,0.3450347,101610.0,101600.0,0.80542124]
[1737948902313,0.3450347,101610.0,101600.0,0.71263003]
[1737948906019,0.5558643,101610.0,101600.0,0.51567403]
[1737948906217,0.9166643,101610.0,101600.0,0.15487403]
[1737948906522,0.5558643,101610.0,101600.0,0.15487403]
[1737948906821,0.46307309,101610.0,101600.0,0.80542124]
[1737948907120,0.26613709,101610.0,101600.0,0.80542124]
[1737948908521,0.46307309,101610.0,101600.0,0.80542124]
[1737948909222,0.26613709,101610.0,101600.0,0.80542124]
[1737948909824,0.46307309,101610.0,101600.0,0.80542124]
[1737948910124,0.5558643,101610.0,101600.0,0.35183003]
[1737948910317,0.46307309,101610.0,101600.0,0.44462124]
[1737948910519,0.4620754,101610.0,101600.0,0.80542124]
[1737948910719,0.31497439,101610.0,101600.0,0.80542124]
[1737948913634,0.4077656,101610.0,101600.0,0.71263003]
[1737948913822,0.4077656,101610.0,101600.0,0.712356]
[1737948916324,0.4077656,101610.0,101600.0,0.71263003]
[1737948917023,0.31497439,101610.0,101600.0,0.71263003]
[1737948917329,0.4077656,101610.0,101600.0,0.71263003]
[1737948918430,0.31497439,101610.0,101600.0,0.71263003]
[1737948919520,0.4077656,101610.0,101600.0,0.71263003]
[1737948920822,0.31497439,101610.0,101600.0,0.71263003]
[1737948921223,0.36647439,101610.0,101600.0,0.71263003]
[1737948922031,0.4592656,101610.0,101600.0,0.71263003]
[1737948923122,0.36647439,101610.0,101600.0,0.71263003]
[1737948924125,0.42501395,101610.0,101600.0,0.71263003]
[1737948926537,0.51780516,101610.0,101600.0,0.71263003]
[1737948927734,0.34122721,101610.0,101600.0,0.71263003]
[1737948928136,0.248436,101610.0,101600.0,0.71263003]
[1737948936237,0.196936,101610.0,101600.0,0.71263003]
[1737948936642,0.196936,101610.0,101600.0,0.77370894]
[1737948937930,0.25801491,101610.0,101600.0,0.77370894]
[1737948939129,0.196936,101610.0,101600.0,0.77370894]
[1737948946350,0.3445915,101610.0,101600.0,0.94910202]
[1737948946850,0.40567041,101610.0,101600.0,0.94910202]
[1737948947849,0.3445915,101610.0,101600.0,0.94910202]
[1737948954154,0.46274825,101610.0,101600.0,0.94910202]
[1737948955953,0.52382716,101610.0,101600.0,0.83442311]
[1737948957850,0.52382716,101610.0,101600.0,0.89550202]
[1737948958349,0.52382716,101610.0,101600.0,0.83442311]
[1737948958852,0.58224836,101610.0,101600.0,0.65903003]
[1737948963151,0.40567041,101610.0,101600.0,0.83442311]
[1737948963865,0.40567041,101610.0,101600.0,0.89550202]
[1737948964256,0.3445915,101610.0,101600.0,0.89550202]
[1737948964949,0.1476555,101610.0,101600.0,0.95658093]
[1737948965153,0.1476555,101610.0,101600.0,0.94900202]
[1737948965348,0.40567041,101610.0,101600.0,0.94900202]
[1737948968959,0.4055549,101610.0,101600.0,0.94900202]
[1737948969966,0.25801491,101610.0,101600.0,0.88792311]
[1737948970874,0.84339382,101610.0,101600.0,0.27666711]
[1737948971162,0.78231491,101610.0,101600.0,0.27666711]
[1737948972167,0.78231491,101610.0,101600.0,0.19596711]
[1737948972859,0.95889286,101610.0,101600.0,0.02057403]
[1737948973869,0.96855801,101610.0,101600.0,0.02057403]
[1737948974869,0.96830816,101610.0,101600.0,0.02057403]
[1737948977768,0.80480816,101610.0,101600.0,0.02057403]
[1737948978772,0.44400816,101610.0,101600.0,0.02057403]
[1737948978964,0.44400816,101610.0,101600.0,0.38137403]
[1737948979865,0.44400816,101610.0,101600.0,0.57833003]
[1737948980369,0.44335485,101610.0,101600.0,0.57833003]
[1737948980870,0.4336897,101610.0,101600.0,0.57833003]
[1737948981167,0.25711175,101610.0,101600.0,0.57833003]
[1737948981369,0.25711175,101610.0,101600.0,0.67993003]
[1737948983173,0.25705175,101610.0,101600.0,0.67993003]
[1737948983875,0.37499707,101610.0,101600.0,0.67993003]
[1737948991574,0.37499707,101610.0,101600.0,0.38137403]
[1737948991774,0.196975,101590.0,101580.0,0.76870046]
[1737948992076,0.75070075,101590.0,101570.0,20.45389486]
[1737948992284,0.94655182,101580.0,101570.0,20.09249486]
[1737948993376,0.58575182,101580.0,101570.0,20.45329486]
[1737948993579,0.63875182,101580.0,101570.0,20.45329486]
[1737948994080,0.63975182,101580.0,101570.0,20.45429486]
[1737948994685,0.47625182,101580.0,101570.0,20.45429486]
[1737948994881,0.47625182,101580.0,101570.0,20.45629486]
[1737948995678,0.41517291,101580.0,101570.0,20.45629486]
[1737948995875,0.41517291,101580.0,101570.0,20.65330886]
[1737948996279,0.25907291,101580.0,101570.0,20.65330886]
[1737948996483,0.25907291,101580.0,101570.0,22.31628777]
[1737948996680,0.26889613,101580.0,101570.0,22.31728777]
[1737948997179,0.26889613,101580.0,101570.0,22.25620886]
[1737948997678,0.26889613,101580.0,101570.0,21.965671]
[1737948998182,0.25907291,101580.0,101570.0,22.02674991]
[1737948999778,0.25907291,101580.0,101570.0,20.52674991]
[1737949000286,0.25907291,101580.0,101570.0,22.02674991]
[1737949000587,0.25907291,101580.0,101570.0,20.52674991]
[1737949001488,0.25907291,101580.0,101570.0,20.53666185]
[1737949002590,0.34737717,101580.0,101570.0,20.53666185]
[1737949003690,0.34737717,101580.0,101570.0,20.47558294]
[1737949005992,0.34737717,101580.0,101570.0,20.53666185]
[1737949006595,0.08930426,101580.0,101570.0,20.53666185]
[1737949011192,0.001,101580.0,101570.0,20.53666185]
[1737949019098,0.001,101580.0,101570.0,20.59774076]
[1737949021100,0.001,101580.0,101570.0,20.53666185]
[1737949021600,0.001,101580.0,101570.0,20.59774076]
[1737949022600,0.001,101580.0,101570.0,22.09774076]
[1737949023713,0.08830426,101590.0,101570.0,21.90072676]
[1737949023897,0.08830426,101590.0,101580.0,0.73195182]
[1737949025303,0.28527926,101590.0,101580.0,0.73195182]
[1737949025597,0.28527926,101590.0,101580.0,0.67087291]
[1737949025801,0.34735817,101590.0,101580.0,0.62087291]
[1737949026102,0.28627926,101590.0,101580.0,0.62087291]
[1737949027494,0.28627926,101590.0,101580.0,0.68195182]
[1737949027894,0.28627926,101590.0,101580.0,0.62087291]
[1737949028302,0.28627926,101590.0,101580.0,0.68195182]
[1737949028501,0.28627926,101590.0,101580.0,0.62087291]
[1737949029595,0.33887926,101590.0,101580.0,0.62087291]
[1737949030810,0.36831402,101590.0,101580.0,0.62087291]
[1737949036510,0.39774877,101590.0,101580.0,0.62087291]
[1737949037207,0.39774877,101590.0,101580.0,0.26007291]
[1737949037408,0.39774877,101590.0,101580.0,0.62087291]
[1737949043112,0.45882768,101590.0,101580.0,0.3628]
[1737949045217,0.45882768,101590.0,101580.0,0.62087291]
[1737949045523,0.52172672,101590.0,101580.0,0.68195182]
[1737949045712,0.52172672,101590.0,101580.0,0.62087291]
[1737949046019,0.52172672,101590.0,101580.0,0.68195182]
[1737949047425,0.52172672,101590.0,101580.0,0.62087291]
[1737949048024,0.52172672,101590.0,101580.0,0.68195182]
[1737949048815,0.52172672,101590.0,101580.0,0.62087291]
[1737949049223,0.52172672,101590.0,101580.0,2.12087291]
[1737949050023,0.31606461,101590.0,101580.0,2.48167291]
[1737949050215,0.37714352,101590.0,101580.0,2.48167291]
[1737949051122,0.37714352,101590.0,101580.0,0.98167291]
[1737949051721,0.37714352,101590.0,101580.0,2.48167291]
[1737949052726,0.37714352,101590.0,101580.0,0.98167291]
[1737949054228,0.31606461,101590.0,101580.0,0.98167291]
[1737949061026,0.37714352,101590.0,101580.0,0.98167291]
[1737949062040,0.37714352,101590.0,101580.0,0.920594]
[1737949062835,0.37714352,101590.0,101580.0,0.98167291]
[1737949063026,0.37714352,101590.0,101580.0,0.920594]
[1737949063228,0.37714352,101590.0,101580.0,0.7236]
[1737949065335,0.37714352,101590.0,101580.0,0.002]
[1737949066039,0.43822243,101590.0,101580.0,0.002]
[1737949067129,0.37714352,101590.0,101580.0,0.002]
[1737949067535,0.43563186,101590.0,101580.0,0.002]
[1737949067932,0.52579186,101590.0,101580.0,0.002]
[1737949069033,0.58687077,101590.0,101580.0,0.002]
[1737949069437,0.59661753,101590.0,101580.0,0.002]
[1737949072842,0.53553862,101590.0,101580.0,0.002]
[1737949075044,0.60887862,101590.0,101580.0,0.002]
[1737949075846,0.60887862,101590.0,101580.0,0.3628]
[1737949076046,0.60887862,101590.0,101580.0,0.002]
[1737949076342,0.60887862,101590.0,101580.0,0.3628]
[1737949078652,0.60887862,101590.0,101580.0,0.62087291]
[1737949078653,0.37455295,101590.0,101580.0,0.62087291]
[1737949078846,0.43563186,101590.0,101580.0,0.67127291]
[1737949080555,0.4064779,101590.0,101580.0,0.67127291]
[1737949081855,0.4064779,101590.0,101580.0,0.3628]
[1737949082055,0.4064779,101590.0,101580.0,0.002]
[1737949082255,0.4552779,101590.0,101580.0,0.002]
[1737949082456,0.5043779,101590.0,101580.0,0.002]
[1737949084459,0.62231384,101590.0,101580.0,0.002]
[1737949088165,0.98311384,101590.0,101580.0,0.002]
[1737949088559,1.04175585,101590.0,101580.0,0.002]
[1737949088760,0.53353186,101590.0,101580.0,0.002]
[1737949091463,0.89433186,101590.0,101580.0,0.002]
[1737949092371,1.11891077,101590.0,101580.0,0.002]
[1737949093382,1.05783186,101590.0,101580.0,0.002]
[1737949096065,0.69703186,101590.0,101580.0,0.002]
[1737949096767,1.05783186,101590.0,101580.0,0.002]
[1737949097473,0.88125391,101590.0,101580.0,0.002]
[1737949103271,0.78335391,101590.0,101580.0,0.002]
[1737949103666,0.25905391,101590.0,101580.0,0.002]
[1737949103871,0.25905391,101590.0,101580.0,0.559794]
[1737949104771,0.42255391,101590.0,101580.0,0.559794]
[1737949106580,0.59962125,101590.0,101580.0,0.559794]
[1737949107179,0.58110308,101590.0,101580.0,0.67127291]
[1737949107773,0.58110308,101590.0,101580.0,0.68109535]
[1737949108680,0.52002417,101590.0,101580.0,0.68109535]
[1737949109872,0.41760308,101590.0,101580.0,0.68109535]
[1737949111283,0.35652417,101590.0,101580.0,0.68109535]
[1737949111675,0.32696941,101590.0,101580.0,0.68109535]
[1737949112570,0.32696941,101590.0,101580.0,0.67127291]
[1737949112782,0.38804832,101590.0,101580.0,0.559794]
[1737949113679,0.38804832,101590.0,101580.0,0.62087291]
[1737949113982,0.32696941,101590.0,101580.0,0.62087291]
[1737949116486,0.38804832,101590.0,101580.0,0.559794]
[1737949118278,0.56511566,101590.0,101580.0,0.559794]
[1737949119791,0.72861566,101590.0,101580.0,0.559794]
[1737949123382,0.58110308,101590.0,101580.0,0.559794]
[1737949124989,0.58110308,101590.0,101580.0,0.62087291]
[1737949126185,0.52002417,101590.0,101580.0,0.62087291]
[1737949127800,0.58110308,101590.0,101580.0,0.559794]
[1737949128793,0.58110308,101590.0,101580.0,0.3628]
[1737949129192,0.40403574,101590.0,101580.0,0.3628]
[1737949129497,0.40403574,101590.0,101580.0,1.8628]
[1737949130589,0.75946569,101590.0,101570.0,20.163277]
[1737949130784,0.46005282,101580.0,101570.0,20.162757]
[1737949130989,0.39897391,101580.0,101570.0,20.162757]
[1737949131490,0.56247391,101580.0,101570.0,20.162757]
[1737949131690,0.56247391,101580.0,101570.0,20.163757]
[1737949131890,0.56347391,101580.0,101570.0,20.172757]
[1737949133399,0.71112544,101580.0,101570.0,20.172757]
[1737949135408,0.77220435,101580.0,101570.0,20.172757]
[1737949136802,0.78198335,101580.0,101570.0,19.811957]
[1737949141914,0.81139916,101580.0,101570.0,19.811957]
[1737949147303,0.90103916,101580.0,101570.0,19.811957]
[1737949147701,1.32291807,101580.0,101570.0,19.811957]
[1737949147901,1.725853,101580.0,101570.0,17.35841178]
[1737949148207,1.725853,101580.0,101570.0,16.64043948]
[1737949148409,1.725853,101580.0,101570.0,16.61052517]
[1737949148914,1.725853,101580.0,101570.0,16.57852517]
[1737949149506,1.725853,101580.0,101570.0,16.50420517]
[1737949149715,1.725853,101580.0,101570.0,16.40407917]
[1737949149910,1.725853,101580.0,101570.0,16.36177607]
[1737949150110,1.725853,101580.0,101570.0,16.22464607]
[1737949150410,1.725853,101580.0,101570.0,15.98915202]
[1737949150607,1.725853,101580.0,101570.0,15.97965202]
[1737949150908,1.725853,101580.0,101570.0,15.96335202]
[1737949151214,1.725853,101580.0,101570.0,15.95417202]
[1737949151615,1.725853,101580.0,101570.0,15.95117202]
[1737949152112,1.72782189,101580.0,101570.0,15.35607599]
[1737949152305,1.72782189,101580.0,101570.0,14.68086511]
[1737949152615,1.72782189,101580.0,101570.0,14.46386944]
[1737949152916,1.72782189,101580.0,101570.0,14.07976945]
[1737949153116,1.72782189,101580.0,101570.0,13.8928164]
[1737949153306,1.72782189,101580.0,101570.0,13.65732235]
[1737949153703,1.72782189,101580.0,101570.0,13.62336235]
[1737949153909,1.78582358,101580.0,101570.0,13.61446235]
[1737949155208,1.78582358,101580.0,101570.0,13.43164284]
[1737949155415,1.78582358,101580.0,101570.0,13.20434284]
[1737949155919,1.78582358,101580.0,101570.0,13.18335284]
[1737949156419,1.78582358,101580.0,101570.0,12.94785879]
[1737949156610,1.78582358,101580.0,101570.0,12.93355839]
[1737949157017,1.78582358,101580.0,101570.0,12.9059284]
[1737949157315,1.78582358,101580.0,101570.0,12.8784184]
[1737949158519,1.69618358,101580.0,101570.0,12.8784184]
[1737949158817,1.78578358,101580.0,101570.0,12.8784184]
[1737949159420,1.78578358,101580.0,101570.0,12.64292435]
[1737949160216,1.69618358,101580.0,101570.0,12.57519435]
[1737949160414,1.78578358,101580.0,101570.0,10.05530435]
[1737949162320,1.78578358,101580.0,101570.0,9.8198103]
[1737949162524,1.78578358,101580.0,101570.0,9.66534079]
[1737949163016,1.78578358,101580.0,101570.0,9.64574079]
[1737949163521,1.48578358,101580.0,101570.0,9.64574079]
[1737949164727,1.78578358,101580.0,101570.0,9.64574079]
[1737949165829,1.78578358,101580.0,101570.0,9.61604649]
[1737949166018,1.78578358,101580.0,101570.0,9.38055244]
[1737949166817,1.48578358,101580.0,101570.0,9.38055244]
[1737949167324,1.39618358,101580.0,101570.0,9.38055244]
[1737949167525,1.48578358,101580.0,101570.0,9.38055244]
[1737949169126,1.69146898,101580.0,101570.0,9.38055244]
[1737949172324,1.69146898,101580.0,101570.0,9.30872027]
[1737949172630,1.69146898,101580.0,101570.0,9.28083027]
[1737949173325,1.99146898,101580.0,101570.0,8.95509622]
[1737949173530,1.69146898,101580.0,101570.0,8.95509622]
[1737949174036,1.87600786,101580.0,101570.0,8.89081783]
[1737949174224,1.87600786,101580.0,101570.0,8.88561783]
[1737949174422,1.87700786,101580.0,101570.0,8.41238998]
[1737949174623,1.87700786,101580.0,101570.0,8.40388998]
[1737949174826,1.87600786,101580.0,101570.0,8.39838998]
[1737949175124,1.87600786,101580.0,101570.0,8.32318997]
[1737949175329,1.87600786,101580.0,101570.0,8.28618997]
[1737949175523,1.57600786,101580.0,101570.0,8.28618997]
[1737949175725,1.57600786,101580.0,101570.0,8.28088997]
[1737949176331,1.57600786,101580.0,101570.0,8.04539592]
[1737949176837,1.57600786,101580.0,101570.0,7.78206392]
[1737949177137,1.57600786,101580.0,101570.0,7.56772292]
[1737949177329,1.57600786,101580.0,101570.0,4.30534792]
[1737949177531,1.57600786,101580.0,101570.0,4.29334792]
[1737949179433,1.57600786,101580.0,101570.0,4.26854792]
[1737949179638,1.87600786,101580.0,101570.0,2.92984771]
[1737949179939,2.40592786,101580.0,101570.0,1.27448583]
[1737949180234,2.76672786,101580.0,101570.0,0.30956839]
[1737949180438,2.76672786,101580.0,101570.0,3.9e-07]
[1737949180627,0.360533,101560.0,101550.0,0.0448]
[1737949180933,1.14321191,101560.0,101550.0,0.0448]
[1737949181134,1.2525622,101560.0,101550.0,0.0448]
[1737949182037,1.2535622,101560.0,101550.0,0.0498]
[1737949182934,1.2535622,101560.0,101550.0,0.0508]
[1737949183136,1.2535622,101560.0,101550.0,0.0139]
[1737949185136,1.57936571,101560.0,101550.0,0.0139]
[1737949185340,1.64044462,101560.0,101550.0,0.0139]
[1737949185641,1.64044462,101560.0,101550.0,0.06]
[1737949186136,1.65053293,101560.0,101550.0,0.06]
[1737949188638,1.41424942,101560.0,101550.0,0.06]
[1737949189249,0.69264942,101560.0,101550.0,0.06]
[1737949189453,1.94420942,101560.0,101550.0,0.06]
[1737949192656,1.94416942,101560.0,101550.0,0.06]
[1737949193452,1.85468942,101560.0,101550.0,0.06]
[1737949193755,2.50245837,101560.0,101550.0,0.06]
[1737949196158,2.41297837,101560.0,101550.0,0.06]
[1737949196360,2.7385996,101560.0,101550.0,0.06]
[1737949198960,2.2086396,101560.0,101550.0,0.06]
[1737949199353,1.94418694,101560.0,101550.0,0.06]
[1737949199551,1.93409863,101560.0,101550.0,0.06]
[1737949203758,1.93409863,101560.0,101550.0,0.006]
[1737949203953,1.97729863,101560.0,101550.0,0.006]
[1737949204861,2.02209863,101560.0,101550.0,0.006]
[1737949211467,1.87293972,101560.0,101550.0,0.006]
[1737949211660,1.93401863,101560.0,101550.0,0.006]
[1737949211861,1.93401863,101560.0,101550.0,0.0506]
[1737949212667,1.90459926,101560.0,101550.0,0.0506]
[1737949215468,1.90459926,101560.0,101550.0,0.06070425]
[1737949217161,1.61076297,101560.0,101550.0,0.06070425]
[1737949217471,1.8469442,101560.0,101550.0,0.06070425]
[1737949218869,1.4861442,101560.0,101550.0,0.06070425]
[1737949219067,1.3967842,101560.0,101550.0,0.06070425]
[1737949219271,1.4861042,101560.0,101550.0,0.06070425]
[1737949219467,1.04316111,101560.0,101550.0,0.06070425]
[1737949219974,0.95384111,101560.0,101550.0,0.06070425]
[1737949220177,1.04316111,101560.0,101550.0,0.06070425]
[1737949220974,0.9820822,101560.0,101550.0,0.06070425]
[1737949222967,0.8927622,101560.0,101550.0,0.06070425]
[1737949223162,0.9820422,101560.0,101550.0,0.06070425]
[1737949223563,0.11035029,101560.0,101550.0,2.17963616]
[1737949223770,0.09028,101560.0,101550.0,2.22403616]
[1737949228884,0.09028,101560.0,101550.0,0.72403616]
[1737949229083,0.26728486,101560.0,101550.0,0.72403616]
[1737949229471,0.26728486,101560.0,101550.0,2.22403616]
[1737949230175,0.26728486,101560.0,101550.0,0.72403616]
[1737949230580,0.26728486,101560.0,101550.0,2.22403616]
[1737949232985,0.09028,101560.0,101550.0,2.22403616]
[1737949234990,0.09028,101560.0,101550.0,0.72403616]
[1737949235288,1.04442846,101560.0,101550.0,0.006]
[1737949235587,1.13272846,101560.0,101550.0,0.006]
[1737949235990,1.07164955,101560.0,101550.0,0.006]
[1737949238790,1.14267833,101560.0,101550.0,0.006]
[1737949241488,0.96099191,101560.0,101550.0,0.006]
[1737949241989,1.02207082,101560.0,101550.0,0.006]
[1737949243091,1.02207082,101560.0,101550.0,0.016]
[1737949243994,0.96099191,101560.0,101550.0,0.016]
[1737949244587,1.02207082,101560.0,101550.0,0.016]
[1737949244787,0.96099191,101560.0,101550.0,0.016]
[1737949245387,0.96087191,101560.0,101550.0,0.016]
[1737949246191,0.76383891,101560.0,101550.0,0.016]
[1737949246494,0.13496,101560.0,101550.0,0.63493191]
[1737949246696,0.09016,101560.0,101550.0,0.63493191]
[1737949246898,0.09016,101560.0,101550.0,0.72013191]
[1737949247498,0.001,101560.0,101550.0,0.72013191]
[1737949247697,0.09016,101560.0,101550.0,0.72013191]
[1737949248589,0.15123891,101560.0,101550.0,0.72013191]
[1737949249399,0.32826087,101560.0,101550.0,0.72013191]
[1737949249989,0.32826087,101560.0,101550.0,0.659053]
[1737949256102,0.26718196,101560.0,101550.0,0.659053]
[1737949257103,0.26718196,101560.0,101550.0,0.72013191]
[1737949257303,0.26710196,101560.0,101550.0,0.72013191]
[1737949260100,0.32818087,101560.0,101550.0,0.617253]
[1737949260298,0.26710196,101560.0,101550.0,0.67833191]
[1737949260903,0.41465264,101560.0,101550.0,0.67833191]
[1737949261999,0.47573155,101560.0,101550.0,0.67833191]
[1737949262505,0.41465264,101560.0,101550.0,0.67833191]
[1737949263303,0.47573155,101560.0,101550.0,0.573853]
[1737949263503,0.75706455,101560.0,101550.0,0.573853]
[1737949263901,0.60951387,101560.0,101550.0,0.573853]
[1737949264304,0.41248087,101560.0,101550.0,0.573853]
[1737949265402,0.41248087,101560.0,101550.0,0.213053]
[1737949266811,0.23545891,101560.0,101550.0,0.213053]
[1737949270313,0.39905891,101560.0,101550.0,0.213053]
[1737949270510,0.39905891,101560.0,101550.0,0.016]
[1737949270705,1.1293834,101560.0,101550.0,0.016]
[1737949271109,0.360653,101550.0,101540.0,0.00996963]
[1737949271304,0.82453191,101550.0,101520.0,1.11865126]
[1737949271509,0.66235391,101540.0,101520.0,1.11865126]
[1737949272416,0.15007891,101530.0,101520.0,0.96797235]
[1737949272612,0.15007891,101530.0,101520.0,0.97097235]
[1737949272914,0.089,101530.0,101520.0,1.04190155]
[1737949273917,0.09,101530.0,101520.0,1.04190155]